fUSD/lending_fUSD_20240327
["ID","MTS","AMOUNT","RATE_DAILY","PERIOD"]
[320702653,1711521042411,-555.134,0.00050947,120]
[320702654,1711521042420,-2800.0,0.00051,2]
[320702655,1711521042429,-1500.0,0.00051,120]
[320702656,1711521042438,-6000.0,0.00051,20]
[320702657,1711521042447,-200.67803036,0.00051,30]
[320702658,1711521042456,-3015.94417672,0.00051,120]
[320702659,1711521042465,-152.41,0.00051068,120]
[320702660,1711521042478,-158.91989118,0.00051076,60]
[320702661,1711521042488,-45481.16391957,0.00051221,8]
[320702662,1711521042497,-716.4015735,0.000513,2]
[320702663,1711521042505,-258.88,0.00051366,120]
[320702664,1711521042516,-807.35175206,0.00051421,14]
[320702665,1711521042526,-150.0,0.00051465,120]
[320702666,1711521042537,-151.032714,0.00051498,103]
[320702667,1711521042547,-5000.0,0.00051588,2]
[320702668,1711521042557,-9484.8076918,0.00051589,28]
[320702669,1711521042567,-151.032714,0.00051798,104]
[320702670,1711521042576,-251.93,0.00052,120]
[320702671,1711521042585,-500.0,0.00052054,60]
[320702672,1711521042594,-3000.0,0.00052054,120]
[320702673,1711521042604,-1574.18,0.00052054,2]
[320702674,1711521042613,-3000.0,0.00052191,120]
[320702675,1711521042623,-1000.0,0.00052236,120]
[320702676,1711521042633,-177.49805552,0.00052269,60]
[320702677,1711521042642,-3000.0,0.00052328,120]
[320702678,1711521042651,-5368.70213469,0.00052336,2]
[320702679,1711521042661,-3000.0,0.00052465,120]
[320702680,1711521042670,-151.032714,0.00052498,104]
[320702681,1711521042679,-500.0,0.00052602,60]
[320702682,1711521042689,-3000.0,0.00052602,120]
[320702683,1711521042698,-158.91989118,0.00052611,60]
[320702684,1711521042707,-3000.0,0.00052739,120]
[320702685,1711521042717,-151.032714,0.00052798,105]
[320702686,1711521042727,-3000.0,0.00052876,120]
[320702687,1711521042736,-1574.18,0.00052876,120]
[320702688,1711521042745,-388.48,0.000529,14]
[320702689,1711521042755,-168422.80759156,0.00052924,120]
[320702690,1711521042763,-40109.16851429,0.00053,30]
[320702691,1711521042773,-1534.15296821,0.00053,4]
[320702692,1711521042782,-501.53,0.00053,14]
[320702693,1711521042794,-170.8,0.00053,7]
[320702694,1711521042805,-2481.86930834,0.00053013,120]
[320702695,1711521042814,-428.01,0.00053049,2]
[320702696,1711521042823,-500.0,0.0005315,60]
[320702697,1711521042832,-153.55361087,0.00053158,56]
[320702698,1711521042842,-716.4015735,0.000532,2]
[320702699,1711521042850,-58000.0,0.00053285,7]
[320702700,1711521042859,-58000.0,0.00053287,7]
[320702701,1711521042869,-6512.96109434,0.00053287,7]
[320702702,1711521042880,-151.0,0.00053287,120]
[320702703,1711521042890,-151.0,0.00053287,120]
[320702704,1711521042899,-151.0,0.00053287,120]
[320702705,1711521042908,-151.0,0.00053287,120]
[320702706,1711521042917,-151.0,0.00053287,120]
[320702707,1711521042926,-151.0,0.00053287,120]
[320702708,1711521042936,-151.0,0.00053287,120]
[320702709,1711521042945,-151.0,0.00053287,120]
[320702710,1711521042954,-151.0,0.00053287,120]
[320702711,1711521042963,-151.0,0.00053287,120]
[320702712,1711521042973,-183.918009,0.00053287,30]
[320702713,1711521042982,-227.870007,0.00053287,120]
[320702714,1711521042991,-227.870007,0.00053287,120]
[320702715,1711521043000,-255.031446,0.00053287,120]
[320702716,1711521043009,-255.031446,0.00053287,120]
[320702717,1711521043018,-151.0,0.00053287,120]
[320702718,1711521043027,-151.334418,0.00053287,120]
[320702719,1711521043036,-151.0,0.00053287,120]
[320702720,1711521043045,-151.0,0.00053287,120]
[320702721,1711521043054,-193.286613,0.00053287,30]
[320702722,1711521043063,-193.286613,0.00053287,30]
[320702723,1711521043072,-151.0,0.00053287,120]
[320702724,1711521043081,-151.0,0.00053287,120]
[320702725,1711521043091,-949.607586,0.00053287,120]
[320702726,1711521043099,-949.607586,0.00053287,120]
[320702727,1711521043108,-9484.8076918,0.00053293,30]
[320702728,1711521043117,-1115.46185,0.0005339,65]
[320702729,1711521043127,-5145.0,0.00053463,7]
[320702730,1711521043136,-151.032714,0.00053498,105]
[320702731,1711521043145,-664.0,0.00053589,120]
[320702732,1711521043154,-388.48,0.000536,14]
[320702733,1711521043164,-618.0,0.00053617,120]
[320702734,1711521043173,-500.0,0.00053698,60]
[320702735,1711521043182,-1574.18,0.00053698,120]
[320702736,1711521043283,-170.8,0.000537,7]
[320702737,1711521043298,-152.02204846,0.00053761,60]
[320702738,1711521043308,-151.032714,0.00053798,106]
[320702739,1711521043318,-403.0,0.00053996,120]
[320702740,1711521043328,-664.0,0.00054,120]
[320702741,1711521043338,-177.49805552,0.00054081,60]
[320702742,1711521043348,-807.35175206,0.00054153,14]
[320702743,1711521043358,-500.0,0.00054246,60]
[320702744,1711521043367,-388.48,0.000543,14]
[320702745,1711521043377,-170.8,0.000544,7]
[320702746,1711521043387,-664.0,0.00054411,120]
[320702747,1711521043396,-151.032714,0.00054498,107]
[320702748,1711521043405,-250.0,0.000545,120]
[320702749,1711521043416,-150.0,0.000545,60]
[320702750,1711521043426,-1574.18,0.0005452,120]
[320702751,1711521043436,-1000.0,0.00054521,120]
[320702752,1711521043445,-1000.0,0.00054537,120]
[320702753,1711521043455,-1000.0,0.00054553,120]
[320702754,1711521043465,-5000.0,0.00054563,2]
[320702755,1711521043477,-1000.0,0.00054569,120]
[320702756,1711521043487,-1000.0,0.00054585,120]
[320702757,1711521043496,-219.35630573,0.000546,2]
[320702758,1711521043506,-1000.0,0.00054601,120]
[320702759,1711521043516,-1000.0,0.00054617,120]
[320702760,1711521043526,-18666.51698679,0.00054619,10]
[320702761,1711521043536,-1000.0,0.00054633,120]
[320702762,1711521043545,-1000.0,0.00054649,120]
[320702763,1711521043554,-464.94522929,0.00054662,2]
[320702764,1711521043564,-1000.0,0.00054666,120]
[320702765,1711521043573,-1000.0,0.00054682,120]
[320702766,1711521043583,-200.93665692,0.00054694,120]
[320702767,1711521043593,-354.42280996,0.00054694,120]
[320702768,1711521043603,-583.22886597,0.00054694,53]
[320702769,1711521043613,-1000.0,0.00054698,120]
[320702770,1711521043622,-18027.84233847,0.000547,120]
[320702771,1711521043632,-62235.771171,0.000547,30]
[320702772,1711521043641,-306.48,0.000547,30]
[320702773,1711521043650,-151.0,0.000547,120]
[320702774,1711521043660,-196.167964,0.000547,14]
[320702775,1711521043669,-196.167964,0.000547,14]
[320702776,1711521043678,-151.64164,0.000547,120]
[320702777,1711521043687,-178.25786,0.000547,120]
[320702778,1711521043696,-151.64164,0.000547,120]
[320702779,1711521043706,-178.25786,0.000547,120]
[320702780,1711521043716,-151.0,0.000547,7]
[320702781,1711521043726,-491.324185,0.000547,30]
[320702782,1711521043735,-491.324185,0.000547,30]
[320702783,1711521043744,-151.0,0.000547,120]
[320702784,1711521043753,-603.075319,0.000547,120]
[320702785,1711521043762,-603.075319,0.000547,120]
[320702786,1711521043772,-155.063246,0.000547,120]
[320702787,1711521043781,-1392.245663,0.000547,120]
[320702788,1711521043790,-1392.245663,0.000547,120]
[320702789,1711521043801,-151.0,0.000547,120]
[320702790,1711521043811,-151.0,0.000547,120]
[320702791,1711521043820,-151.0,0.000547,120]
[320702792,1711521043830,-201.505912,0.000547,120]
[320702793,1711521043839,-201.505912,0.000547,120]
[320702794,1711521043849,-151.0,0.000547,120]
[320702795,1711521043858,-151.0,0.000547,120]
[320702796,1711521043867,-151.0,0.000547,120]
[320702797,1711521043877,-449.895944,0.000547,120]
[320702798,1711521043887,-449.895944,0.000547,120]
[320702799,1711521043896,-218.726235,0.000547,120]
[320702800,1711521043905,-218.726235,0.000547,120]
[320702801,1711521043914,-151.678762,0.000547,120]
[320702802,1711521043923,-1200.620511,0.000547,120]
[320702803,1711521043933,-540.245892,0.000547,120]
[320702804,1711521043942,-1200.620511,0.000547,120]
[320702805,1711521043951,-540.245892,0.000547,120]
[320702806,1711521043959,-151.0,0.000547,120]
[320702807,1711521043969,-151.770225,0.000547,120]
[320702808,1711521043980,-151.0,0.000547,7]
[320702809,1711521043988,-523.683972,0.000547,120]
[320702810,1711521043997,-523.683972,0.000547,120]
[320702811,1711521044006,-151.0,0.000547,60]
[320702812,1711521044015,-151.0,0.000547,60]
[320702813,1711521044024,-193.071608,0.000547,120]
[320702814,1711521044034,-151.0,0.000547,120]
[320702815,1711521044043,-151.0,0.000547,120]
[320702816,1711521044053,-151.0,0.000547,120]
[320702817,1711521044062,-151.0,0.000547,120]
[320702818,1711521044071,-177.051292,0.000547,120]
[320702819,1711521044080,-177.051292,0.000547,120]
[320702820,1711521044089,-1026.185319,0.000547,120]
[320702821,1711521044098,-1026.185319,0.000547,120]
[320702822,1711521044107,-240.53095,0.000547,120]
[320702823,1711521044116,-240.53095,0.000547,120]
[320702824,1711521044125,-227.980814,0.000547,120]
[320702825,1711521044134,-227.980814,0.000547,120]
[320702826,1711521044143,-1000.0,0.00054714,120]
[320702827,1711521044152,-1000.0,0.0005473,120]
[320702828,1711521044162,-1000.0,0.00054746,120]
[320702829,1711521044170,-1000.0,0.00054762,120]
[320702830,1711521044179,-5368.70213469,0.00054766,2]
[320702831,1711521044189,-1000.0,0.00054778,120]
[320702832,1711521044198,-313.2615541,0.00054791,2]
[320702833,1711521044209,-150.0,0.00054793,30]
[320702834,1711521044218,-150.0,0.00054793,60]
[320702835,1711521044228,-150.0,0.00054793,14]
[320702836,1711521044237,-161.88140801,0.00054794,120]
[320702837,1711521044247,-500.0,0.00054794,120]
[320702838,1711521044256,-500.0,0.00054794,120]
[320702839,1711521044265,-5800.0,0.00054794,7]
[320702840,1711521044274,-516.48888986,0.00054794,120]
[320702841,1711521044284,-500.0,0.00054794,120]
[320702842,1711521044293,-500.0,0.00054794,120]
[320702843,1711521044302,-500.0,0.00054794,120]
[320702844,1711521044311,-500.0,0.00054794,120]
[320702845,1711521044320,-500.0,0.00054794,120]
[320702846,1711521044330,-898.85,0.00054794,120]
[320702847,1711521044339,-522.3862318,0.00054794,120]
[320702848,1711521044349,-555.68,0.00054794,120]
[320702849,1711521044358,-500.0,0.00054794,120]
[320702850,1711521044367,-506.34562458,0.00054794,120]
[320702851,1711521044376,-500.0,0.00054794,120]
[320702852,1711521044386,-10000.0,0.00054794,2]
[320702853,1711521044396,-500.0,0.00054794,120]
[320702854,1711521044405,-525.94117525,0.00054794,120]
[320702855,1711521044414,-151.0,0.00054794,120]
[320702856,1711521044424,-523.55499417,0.00054794,120]
[320702857,1711521044432,-156.405141,0.00054794,120]
[320702858,1711521044442,-500.0,0.00054794,120]
[320702859,1711521044451,-531.14093787,0.00054794,120]
[320702860,1711521044460,-513.74496334,0.00054794,120]
[320702861,1711521044469,-500.0,0.00054794,120]
[320702862,1711521044479,-500.0,0.00054794,120]
[320702863,1711521044488,-566.88301978,0.00054794,120]
[320702864,1711521044497,-581.24806757,0.00054794,120]
[320702865,1711521044506,-519.54848008,0.00054794,120]
[320702866,1711521044514,-151.0,0.00054794,120]
[320702867,1711521044523,-151.0,0.00054794,120]
[320702868,1711521044532,-151.0,0.00054794,120]
[320702869,1711521044541,-151.0,0.00054794,120]
[320702870,1711521044550,-151.0,0.00054794,120]
[320702871,1711521044559,-151.0,0.00054794,120]
[320702872,1711521044568,-517.29077982,0.00054794,120]
[320702873,1711521044577,-522.49432903,0.00054794,120]
[320702874,1711521044586,-151.0,0.00054794,120]
[320702875,1711521044595,-151.899973,0.00054794,120]
[320702876,1711521044605,-151.0,0.00054794,120]
[320702877,1711521044614,-151.0,0.00054794,120]
[320702878,1711521044624,-151.0,0.00054794,120]
[320702879,1711521044633,-500.0,0.00054794,120]
[320702880,1711521044642,-523.75355317,0.00054794,120]
[320702881,1711521044651,-530.00738158,0.00054794,120]
[320702882,1711521044660,-573.56,0.00054794,120]
[320702883,1711521044669,-500.0,0.00054794,120]
[320702884,1711521044678,-508.2215412,0.00054794,120]
[320702885,1711521044689,-505.32991683,0.00054794,120]
[320702886,1711521044698,-500.0,0.00054794,120]
[320702887,1711521044707,-550.36438401,0.00054794,120]
[320702888,1711521044717,-512.27492906,0.00054794,120]
[320702889,1711521044727,-500.0,0.00054794,120]
[320702890,1711521044737,-500.0,0.00054794,120]
[320702891,1711521044745,-500.0,0.00054794,120]
[320702892,1711521044755,-500.0,0.00054794,120]
[320702893,1711521044764,-500.0,0.00054794,120]
[320702894,1711521044773,-592.61403696,0.00054794,120]
[320702896,1711521044874,-512.48131199,0.00054794,120]
[320702898,1711521044884,-500.0,0.00054794,120]
[320702899,1711521044894,-500.0,0.00054794,120]
[320702900,1711521044903,-500.0,0.00054794,120]
[320702901,1711521044912,-500.0,0.00054794,120]
[320702902,1711521044920,-151.0,0.00054794,120]
[320702903,1711521044929,-151.0,0.00054794,120]
[320702904,1711521044938,-1349.2,0.00054794,120]
[320702905,1711521044947,-151.0,0.00054794,120]
[320702906,1711521044956,-500.0,0.00054794,120]
[320702907,1711521044966,-511.96111163,0.00054794,120]
[320702908,1711521044975,-500.0,0.00054794,120]
[320702909,1711521044984,-500.0,0.00054794,120]
[320702910,1711521044994,-151.0,0.00054794,120]
[320702911,1711521045003,-500.0,0.00054794,120]
[320702912,1711521045012,-151.0,0.00054794,120]
[320702913,1711521045021,-151.0,0.00054794,120]
[320702914,1711521045030,-511.20865304,0.00054794,120]
[320702915,1711521045040,-500.0,0.00054794,120]
[320702916,1711521045049,-500.0,0.00054794,120]
[320702917,1711521045058,-499.79429337,0.00054794,120]
[320702918,1711521045067,-526.95401124,0.00054794,120]
[320702919,1711521045077,-500.0,0.00054794,120]
[320702920,1711521045086,-488.26532536,0.00054794,120]
[320702921,1711521045094,-500.0,0.00054794,120]
[320702922,1711521045103,-500.0,0.00054794,120]
[320702923,1711521045112,-500.0,0.00054794,120]
[320702924,1711521045121,-510.49564093,0.00054794,120]
[320702925,1711521045130,-508.77463484,0.00054794,120]
[320702926,1711521045139,-500.0,0.00054794,120]
[320702927,1711521045148,-260.60155156,0.00054794,120]
[320702928,1711521045157,-500.0,0.00054794,120]
[320702929,1711521045166,-500.0,0.00054794,120]
[320702930,1711521045175,-500.0,0.00054794,120]
[320702931,1711521045185,-500.0,0.00054794,120]
[320702932,1711521045194,-554.18,0.00054794,120]
[320702933,1711521045203,-439.36992962,0.00054794,120]
[320702934,1711521045213,-500.0,0.00054794,120]
[320702935,1711521045222,-151.0,0.00054794,120]
[320702936,1711521045233,-509.6026202,0.00054794,120]
[320702937,1711521045242,-151.0,0.00054794,120]
[320702938,1711521045251,-151.0,0.00054794,120]
[320702939,1711521045260,-151.0,0.00054794,120]
[320702940,1711521045269,-502.14479122,0.00054794,120]
[320702941,1711521045278,-151.0,0.00054794,120]
[320702942,1711521045288,-151.0,0.00054794,120]
[320702943,1711521045297,-500.0,0.00054794,120]
[320702944,1711521045306,-500.0,0.00054794,120]
[320702945,1711521045315,-500.0,0.00054794,120]
[320702946,1711521045325,-620.25,0.00054794,120]
[320702947,1711521045334,-584.31825443,0.00054794,120]
[320702948,1711521045343,-192.68697072,0.00054794,120]
[320702949,1711521045352,-791.55,0.00054794,120]
[320702950,1711521045361,-503.14946635,0.00054794,120]
[320702951,1711521045371,-505.74693313,0.00054794,120]
[320702952,1711521045380,-500.0,0.00054794,120]
[320702953,1711521045389,-151.0,0.00054794,120]
[320702954,1711521045399,-151.0,0.00054794,120]
[320702955,1711521045408,-151.0,0.00054794,120]
[320702956,1711521045417,-500.0,0.00054794,120]
[320702957,1711521045427,-151.92812125,0.00054794,120]
[320702958,1711521045436,-500.0,0.00054794,120]
[320702959,1711521045445,-1084.11,0.00054794,120]
[320702960,1711521045454,-511.05981507,0.00054794,120]
[320702961,1711521045464,-510.15,0.00054794,120]
[320702962,1711521045474,-505.80059688,0.00054794,120]
[320702963,1711521045484,-516.71867576,0.00054794,120]
[320702964,1711521045493,-500.0,0.00054794,120]
[320702965,1711521045502,-517.37105588,0.00054794,120]
[320702966,1711521045511,-500.0,0.00054794,120]
[320702967,1711521045521,-852.67,0.00054794,120]
[320702968,1711521045530,-592.4,0.00054794,120]
[320702969,1711521045539,-511.87182364,0.00054794,120]
[320702970,1711521045548,-151.0,0.00054794,120]
[320702971,1711521045557,-151.0,0.00054794,120]
[320702972,1711521045566,-151.0,0.00054794,120]
[320702973,1711521045575,-504.1223992,0.00054794,120]
[320702974,1711521045584,-574.70189242,0.00054794,120]
[320702975,1711521045594,-500.0,0.00054794,120]
[320702976,1711521045602,-520.4238631,0.00054794,120]
[320702977,1711521045614,-500.0,0.00054794,120]
[320702978,1711521045623,-500.0,0.00054794,120]
[320702979,1711521045632,-151.0,0.00054794,120]
[320702980,1711521045641,-151.0,0.00054794,120]
[320702981,1711521045649,-525.44,0.00054794,120]
[320702982,1711521045658,-551.53,0.00054794,120]
[320702983,1711521045668,-151.0,0.00054794,120]
[320702984,1711521045677,-500.0,0.00054794,120]
[320702985,1711521045686,-171.3548,0.00054794,120]
[320702986,1711521045696,-171.3548,0.00054794,120]
[320702987,1711521045705,-171.3548,0.00054794,120]
[320702988,1711521045714,-512.9019656,0.00054794,120]
[320702989,1711521045724,-500.0,0.00054794,120]
[320702990,1711521045734,-500.0,0.00054794,120]
[320702991,1711521045744,-171.3548,0.00054794,120]
[320702992,1711521045753,-171.3548,0.00054794,120]
[320702993,1711521045762,-502.5860526,0.00054794,120]
[320702994,1711521045771,-171.3548,0.00054794,120]
[320702995,1711521045781,-500.0,0.00054794,120]
[320702996,1711521045790,-524.48049808,0.00054794,120]
[320702997,1711521045799,-524.48039065,0.00054794,120]
[320702998,1711521045810,-500.0,0.00054794,120]
[320702999,1711521045819,-500.0,0.00054794,120]
[320703000,1711521045828,-500.0,0.00054794,120]
[320703001,1711521045838,-521.85425296,0.00054794,120]
[320703002,1711521045848,-500.0,0.00054794,120]
[320703003,1711521045857,-500.0,0.00054794,120]
[320703004,1711521045866,-525.02708951,0.00054794,120]
[320703005,1711521045875,-151.0,0.00054794,120]
[320703006,1711521045885,-151.0,0.00054794,120]
[320703007,1711521045894,-151.0,0.00054794,120]
[320703008,1711521045903,-514.98391462,0.00054794,120]
[320703009,1711521045913,-500.0,0.00054794,120]
[320703010,1711521045922,-500.0,0.00054794,120]
[320703011,1711521045931,-500.0,0.00054794,120]
[320703012,1711521045940,-500.0,0.00054794,120]
[320703013,1711521045950,-510.52235012,0.00054794,120]
[320703014,1711521045959,-500.0,0.00054794,120]
[320703015,1711521045968,-500.0,0.00054794,120]
[320703016,1711521045978,-500.0,0.00054794,120]
[320703017,1711521045987,-500.0,0.00054794,120]
[320703018,1711521045996,-500.0,0.00054794,120]
[320703019,1711521046005,-510.64933931,0.00054794,120]
[320703020,1711521046015,-518.4128328,0.00054794,120]
[320703021,1711521046024,-500.0,0.00054794,120]
[320703022,1711521046034,-511.56572571,0.00054794,120]
[320703023,1711521046043,-500.0,0.00054794,120]
[320703024,1711521046052,-511.6319835,0.00054794,120]
[320703025,1711521046061,-504.51745357,0.00054794,120]
[320703026,1711521046070,-500.0,0.00054794,120]
[320703027,1711521046080,-5035.10738104,0.00054794,120]
[320703028,1711521046089,-517.37661717,0.00054794,120]
[320703029,1711521046098,-500.0,0.00054794,120]
[320703030,1711521046107,-500.0,0.00054794,120]
[320703031,1711521046117,-500.0,0.00054794,120]
[320703032,1711521046127,-500.0,0.00054794,120]
[320703033,1711521046138,-500.0,0.00054794,120]
[320703034,1711521046149,-511.46381503,0.00054794,120]
[320703035,1711521046160,-500.0,0.00054794,120]
[320703036,1711521046171,-151.0,0.00054794,120]
[320703037,1711521046180,-151.0,0.00054794,120]
[320703039,1711521046190,-500.0,0.00054794,120]
[320703041,1711521046199,-151.0,0.00054794,120]
[320703043,1711521046208,-528.14991632,0.00054794,120]
[320703045,1711521046217,-500.0,0.00054794,120]
[320703046,1711521046227,-508.35176156,0.00054794,120]
[320703047,1711521046236,-500.0,0.00054794,120]
[320703048,1711521046337,-500.0,0.00054794,120]
[320703049,1711521046348,-508.15915803,0.00054794,120]
[320703050,1711521046358,-500.0,0.00054794,120]
[320703051,1711521046368,-516.20340899,0.00054794,120]
[320703052,1711521046378,-500.0,0.00054794,120]
[320703053,1711521046388,-500.0,0.00054794,120]
[320703054,1711521046398,-500.0,0.00054794,120]
[320703055,1711521046407,-500.0,0.00054794,120]
[320703056,1711521046417,-557.72014281,0.00054794,120]
[320703057,1711521046426,-510.7130573,0.00054794,120]
[320703058,1711521046435,-500.0,0.00054794,120]
[320703059,1711521046445,-500.0,0.00054794,120]
[320703060,1711521046454,-531.3054507,0.00054794,120]
[320703061,1711521046463,-500.0,0.00054794,120]
[320703062,1711521046473,-500.0,0.00054794,120]
[320703063,1711521046484,-500.0,0.00054794,120]
[320703064,1711521046493,-157.477533,0.00054794,7]
[320703065,1711521046502,-157.477533,0.00054794,7]
[320703066,1711521046511,-157.477533,0.00054794,7]
[320703067,1711521046521,-500.0,0.00054794,120]
[320703068,1711521046530,-521.17806824,0.00054794,120]
[320703069,1711521046539,-500.0,0.00054794,120]
[320703070,1711521046549,-157.477533,0.00054794,7]
[320703071,1711521046559,-157.477533,0.00054794,7]
[320703072,1711521046568,-157.477533,0.00054794,7]
[320703073,1711521046577,-515.45154437,0.00054794,120]
[320703074,1711521046586,-526.48044439,0.00054794,120]
[320703075,1711521046596,-500.0,0.00054794,120]
[320703076,1711521046605,-264.81303068,0.00054794,120]
[320703077,1711521046614,-518.39613521,0.00054794,120]
[320703078,1711521046624,-500.0,0.00054794,120]
[320703079,1711521046633,-207.543318,0.00054794,120]
[320703080,1711521046643,-207.543318,0.00054794,120]
[320703081,1711521046652,-207.543318,0.00054794,120]
[320703082,1711521046661,-207.543318,0.00054794,120]
[320703083,1711521046670,-207.543318,0.00054794,120]
[320703085,1711521046679,-207.543318,0.00054794,120]
[320703086,1711521046688,-714.93,0.00054794,120]
[320703087,1711521046698,-500.0,0.00054794,120]
[320703088,1711521046707,-500.0,0.00054794,120]
[320703089,1711521046716,-151.0,0.00054794,120]
[320703090,1711521046726,-151.0,0.00054794,120]
[320703091,1711521046735,-151.0,0.00054794,120]
[320703092,1711521046745,-518.10863169,0.00054794,120]
[320703093,1711521046754,-508.20683283,0.00054794,30]
[320703094,1711521046763,-291.893343,0.00054794,120]
[320703095,1711521046772,-515.31631921,0.00054794,120]
[320703096,1711521046781,-576.97,0.00054794,120]
[320703098,1711521046792,-511.91156569,0.00054794,120]
[320703101,1711521046804,-506.11315218,0.00054794,120]
[320703104,1711521046815,-500.0,0.00054794,120]
[320703107,1711521046824,-512.62256813,0.00054794,120]
[320703108,1711521046834,-500.0,0.00054794,120]
[320703111,1711521046843,-500.0,0.00054794,120]
[320703114,1711521046853,-500.0,0.00054794,120]
[320703117,1711521046863,-619.31,0.00054794,120]
[320703118,1711521046872,-880.5,0.00054794,120]
[320703119,1711521046882,-500.0,0.00054794,120]
[320703121,1711521046891,-151.0,0.00054794,120]
[320703122,1711521046900,-512.32066762,0.00054794,120]
[320703124,1711521046909,-151.0,0.00054794,120]
[320703126,1711521046918,-500.0,0.00054794,2]
[320703128,1711521046927,-151.0,0.00054794,120]
[320703130,1711521046936,-523.33309454,0.00054794,120]
[320703132,1711521046945,-510.62804641,0.00054794,120]
[320703133,1711521046954,-609.3036375,0.00054794,120]
[320703134,1711521046962,-539.35,0.00054794,120]
[320703135,1711521046971,-151.0,0.00054794,120]
[320703136,1711521046981,-151.0,0.00054794,120]
[320703137,1711521046990,-500.0,0.00054794,120]
[320703138,1711521046999,-500.0,0.00054794,120]
[320703139,1711521047010,-543.59,0.00054794,120]
[320703140,1711521047022,-508.61831958,0.00054794,120]
[320703141,1711521047032,-681.66,0.00054794,120]
[320703142,1711521047042,-509.39494599,0.00054794,120]
[320703143,1711521047051,-523.92329338,0.00054794,120]
[320703144,1711521047061,-500.0,0.00054794,120]
[320703145,1711521047071,-693.36,0.00054794,120]
[320703146,1711521047081,-500.0,0.00054794,120]
[320703147,1711521047091,-880.23,0.00054794,120]
[320703148,1711521047101,-603.54,0.00054794,120]
[320703149,1711521047111,-442.95271759,0.00054794,120]
[320703150,1711521047121,-196.167964,0.00054794,14]
[320703151,1711521047130,-570.05,0.00054794,120]
[320703152,1711521047140,-196.167964,0.00054794,14]
[320703153,1711521047150,-500.0,0.00054794,120]
[320703154,1711521047159,-1223.28,0.00054794,120]
[320703155,1711521047168,-196.167964,0.00054794,14]
[320703156,1711521047177,-196.167964,0.00054794,14]
[320703157,1711521047186,-500.0,0.00054794,120]
[320703158,1711521047195,-1225.28,0.00054794,120]
[320703159,1711521047205,-509.85941805,0.00054794,120]
[320703160,1711521047215,-634.8,0.00054794,120]
[320703161,1711521047224,-500.0,0.00054794,120]
[320703162,1711521047234,-151.64164,0.00054794,120]
[320703163,1711521047243,-500.0,0.00054794,120]
[320703164,1711521047253,-500.0,0.00054794,120]
[320703165,1711521047263,-151.64164,0.00054794,120]
[320703166,1711521047272,-513.13280676,0.00054794,120]
[320703167,1711521047282,-178.25786,0.00054794,120]
[320703168,1711521047291,-178.25786,0.00054794,120]
[320703169,1711521047301,-544.25,0.00054794,120]
[320703170,1711521047310,-151.64164,0.00054794,120]
[320703171,1711521047319,-501.94503453,0.00054794,120]
[320703172,1711521047328,-151.64164,0.00054794,120]
[320703173,1711521047338,-500.0,0.00054794,120]
[320703174,1711521047347,-511.23770452,0.00054794,120]
[320703175,1711521047356,-178.25786,0.00054794,120]
[320703176,1711521047365,-178.25786,0.00054794,120]
[320703177,1711521047374,-1166.22,0.00054794,120]
[320703178,1711521047384,-586.63,0.00054794,120]